bitfinex/quotes_SOLUSD_20240808
["timestamp","ask_amount","ask_price","bid_price","bid_amount"]
[1723158455955,41.06,162.03,161.92,15.4395]
[1723158456137,6.1732,161.99,161.92,15.4395]
[1723158456336,6.1728,162.01,161.92,15.4395]
[1723158457151,41.06,162.03,161.92,15.4395]
[1723158457152,1.54361371,162.0,161.92,15.4395]
[1723158457447,6.1731,162.0,161.87,88.5422]
[1723158457647,41.06,162.03,161.92,21.6153]
[1723158457648,6.1733,161.99,161.92,21.6153]
[1723158458462,6.1736,161.98,161.92,15.4395]
[1723158458649,6.174,161.97,161.9,6.1763]
[1723158459843,1.54383163,161.96,161.88,15.4426]
[1723158460168,6.1743,161.97,161.9,6.1766]
[1723158460767,6.1744,161.96,161.89,6.1769]
[1723158462356,41.06,162.03,161.89,41.06]
[1723158462562,15.4263,162.07,161.89,41.06]
[1723158462563,47.5032,162.06,161.89,41.06]
[1723158463063,1.5434487,162.05,161.94,15.4374]
[1723158463264,6.1728,162.01,161.94,15.4374]
[1723158463473,6.1744,161.96,161.9,15.4412]
[1723158463653,6.1748,161.95,161.89,32.99]
[1723158463844,1.54388186,161.94,161.87,16.5952]
[1723158464171,1.54388186,161.94,161.87,49.5852]
[1723158464341,6.1755,161.93,161.87,49.5852]
[1723158464542,7.71898186,161.94,161.87,55.7629]
[1723158464749,32.99,161.96,161.87,55.7629]
[1723158464750,6.176,161.92,161.87,16.5952]
[1723158464979,32.99,161.96,161.87,16.5952]
[1723158465144,32.99,161.98,161.89,15.4422]
[1723158465473,32.99,161.98,161.91,6.1759]
[1723158465648,6.1743,161.96,161.9,6.1766]
[1723158465975,6.1743,161.96,161.89,15.4422]
[1723158466180,6.1743,161.96,161.89,21.6192]
[1723158466348,32.99,161.96,161.87,49.5852]
[1723158466744,6.1751,161.95,161.87,55.7629]
[1723158467067,32.99,161.96,161.87,49.5852]
[1723158467277,48.4221,162.0,161.91,32.99]
[1723158467278,32.99,162.0,161.91,32.99]
[1723158467569,39.1624,162.02,161.93,32.99]
[1723158467874,6.1728,162.0,161.94,15.4377]
[1723158468172,6.1743,161.96,161.91,32.99]
[1723158468351,6.1743,161.96,161.9,15.4407]
[1723158468666,32.99,162.0,161.9,15.4407]
[1723158468850,32.99,162.0,161.92,6.1755]
[1723158468851,6.1737,161.98,161.92,6.1755]
[1723158469171,6.1755,161.93,161.87,16.5952]
[1723158469657,32.99,161.96,161.87,49.5852]
[1723158469968,6.1756,161.93,161.87,49.5852]
[1723158470152,32.99,161.96,161.87,16.5952]
[1723158470348,32.99,161.96,161.87,49.5852]
[1723158470547,32.99,162.02,161.94,6.1751]
[1723158470750,32.99,162.02,161.93,48.4278]
[1723158470944,6.1728,162.0,161.93,54.6031]
[1723158471162,6.1732,161.99,161.93,48.4278]
[1723158471365,6.1726,162.01,161.93,48.4278]
[1723158471677,32.99,162.02,161.91,32.99]
[1723158471851,32.99,162.0,161.91,32.99]
[1723158472053,32.99,162.0,161.87,49.5852]
[1723158472054,32.99,161.96,161.87,49.5852]
[1723158472253,6.1758,161.93,161.87,16.5952]
[1723158472561,6.176,161.92,161.87,16.5952]
[1723158472767,32.99,161.94,161.87,16.5952]
[1723158472973,39.1662,161.92,161.87,16.5952]
[1723158473186,39.1662,161.92,161.72,20.0]
[1723158473187,6.1778,161.87,161.81,15.1843]
[1723158473485,1.54474536,161.86,161.81,15.1843]
[1723158473686,6.1778,161.87,161.81,15.1843]
[1723158473981,32.99,161.88,161.81,21.3643]
[1723158473982,39.1674,161.88,161.81,21.3643]
[1723158474177,32.99,161.9,161.81,15.1843]
[1723158474361,32.99,161.9,161.83,15.4479]
[1723158474567,32.99,161.92,161.84,1.04683565]
[1723158475173,32.99,161.94,161.86,15.4452]
[1723158475484,48.4229,162.0,161.89,6.1769]
[1723158475485,39.1643,161.96,161.89,6.1769]
[1723158475658,32.99,161.96,161.89,15.4423]
[1723158475862,39.1637,161.98,161.9,6.1762]
[1723158476086,32.99,161.98,161.9,6.1762]
[1723158476379,32.99,162.0,161.95,6.1747]
[1723158476591,32.99,162.0,161.94,6.1751]
[1723158477073,6.1735,161.99,161.92,21.615]
[1723158477668,32.99,162.0,161.81,35.1843]
[1723158477669,32.99,161.96,161.88,21.6199]
[1723158477872,32.99,161.98,161.88,15.4429]
[1723158478082,32.99,161.96,161.88,15.4429]
[1723158478453,7.71916743,161.95,161.88,21.6202]
[1723158478684,32.99,161.96,161.88,15.4429]
[1723158478857,6.1751,161.94,161.88,15.4429]
[1723158479061,6.31205262,162.01,161.91,15.4403]
[1723158479280,32.99,162.0,161.9,32.99]
[1723158479487,32.99,162.0,161.93,15.4385]
[1723158479856,32.99,162.04,161.97,6.1738]
[1723158480059,32.99,162.02,161.96,15.4358]
[1723158480286,32.99,162.0,161.92,15.439]
[1723158480489,32.99,162.0,161.9,39.4895]
[1723158480490,32.99,161.98,161.9,6.4995]
[1723158480688,32.99,161.96,161.88,15.4427]
[1723158480868,32.99,161.94,161.85,6.1782]
[1723158481183,6.1729,162.0,161.9,48.4313]
[1723158481391,32.99,162.02,161.92,32.99]
[1723158481598,32.99,162.02,161.92,48.5883]
[1723158481762,1.54371752,162.01,161.96,6.1743]
[1723158482083,32.99,162.02,161.96,6.1743]
[1723158482390,32.99,162.02,161.92,64.0273]
[1723158482391,32.99,162.02,161.94,6.1748]
[1723158482574,32.99,162.02,161.93,6.1751]
[1723158482776,6.30544847,162.06,161.92,31.0373]
[1723158482777,32.99,162.0,161.92,31.0373]
[1723158483072,32.99,162.0,161.92,64.0273]
[1723158483260,32.99,162.02,161.92,64.0273]
[1723158483460,32.99,162.04,161.95,15.436]
[1723158483676,32.99,162.04,161.96,1.04398957]
[1723158483885,6.1706,162.06,161.98,15.433]
[1723158483886,32.99,162.06,161.98,15.433]
[1723158484086,6.194,162.1,162.04,6.1713]
[1723158484087,32.99,162.1,162.04,6.1713]
[1723158484389,32.99,162.14,162.04,32.99]
[1723158484577,0.6544664,162.15,162.1,6.1689]
[1723158484780,0.6544664,162.15,162.09,7.21011834]
[1723158484978,0.6544664,162.15,162.08,48.4137]
[1723158485171,0.6544664,162.15,162.05,15.5983]
[1723158485172,0.6544664,162.15,162.12,15.4203]
[1723158485506,39.30627793,162.2,162.16,6.1663]
[1723158485507,6.31627793,162.2,162.16,6.1663]
[1723158485701,32.99,162.26,162.17,1.03966089]
[1723158486392,32.99,162.26,162.17,22.8286]
[1723158486600,32.99,162.27,162.21,6.1646]
[1723158486769,32.99,162.27,162.2,15.4129]
[1723158486969,32.99,162.27,162.2,16.45146392]
[1723158487268,32.99,162.27,162.21,7.20326107]
[1723158487466,32.99,162.27,162.2,15.4129]
[1723158487670,6.163,162.26,162.17,22.8285]
[1723158487888,1.54120285,162.28,162.17,16.6625]
[1723158488174,46.48388125,162.29,162.17,16.6625]
[1723158488484,40.17,162.27,162.17,16.6625]
[1723158488674,6.163,162.26,162.18,6.1659]
[1723158489293,40.17,162.27,162.18,1.03894578]
[1723158489479,40.17,162.27,162.19,1.0389422]
[1723158489684,6.162,162.29,162.17,16.6625]
[1723158489891,6.162,162.29,162.21,6.1647]
[1723158490070,6.1611,162.31,162.22,1.03849263]
[1723158490271,6.1611,162.31,162.2,1.03785555]
[1723158490572,41.042529,162.32,162.19,15.4132]
[1723158490769,40.17,162.29,162.17,16.6625]
[1723158490999,6.1628,162.27,162.17,16.6625]
[1723158491177,6.1628,162.27,162.19,6.1655]
[1723158491491,6.1628,162.27,162.17,38.2436]
[1723158491671,6.163,162.26,162.18,6.1659]
[1723158492301,6.164,162.24,162.17,16.6625]
[1723158492510,40.17,162.26,162.18,1.03895087]
[1723158492678,40.17,162.29,162.22,6.1642]
[1723158492998,7.17649785,162.32,162.23,1.03804103]
[1723158492999,47.203429,162.32,162.23,1.03804103]
[1723158493212,47.203429,162.32,162.17,56.8325]
[1723158493213,0.872529,162.32,162.26,6.1628]
[1723158493701,0.872529,162.32,162.24,15.4085]
[1723158493886,6.1612,162.31,162.24,15.4085]
[1723158494284,0.872529,162.32,162.25,1.0375964]
[1723158494486,0.872529,162.32,162.24,15.4085]
[1723158494696,41.042529,162.32,162.21,6.6228]
[1723158495104,6.1617,162.3,162.21,12.7875]
[1723158495284,0.872529,162.32,162.24,15.4092]
[1723158495481,0.872529,162.32,162.27,6.1624]
[1723158495986,0.872529,162.32,162.3,6.1613]
[1723158496196,0.872529,162.32,162.31,1.03584155]
[1723158496376,40.17,162.42,162.31,1.03584155]
[1723158496577,6.1594,162.36,162.3,16.4329]
[1723158496986,6.1593,162.36,162.3,16.4329]
[1723158497206,40.17,162.4,162.3,16.4329]
[1723158497409,40.17,162.4,162.3,22.5942]
[1723158497589,6.1588,162.37,162.3,16.4329]
[1723158497780,40.17,162.4,162.24,15.4089]
[1723158497781,40.17,162.34,162.24,15.4089]
[1723158497987,6.1605,162.33,162.24,15.4089]
[1723158498218,40.17,162.36,162.24,15.4089]
[1723158498584,6.1603,162.33,162.24,21.5723]
[1723158498782,6.1604,162.33,162.24,15.4089]
[1723158498999,40.17,162.36,162.24,15.4089]
[1723158499000,40.17,162.36,162.26,6.1629]
[1723158499201,26.1595,162.35,162.27,7.19914521]
[1723158499401,26.1595,162.35,162.28,6.162]
[1723158499582,40.17,162.38,162.29,1.03650483]
[1723158499793,6.1595,162.35,162.25,1.03650312]
[1723158499981,41.71035392,162.35,162.24,15.4089]
[1723158500175,20.0,162.34,162.24,15.4089]
[1723158500382,20.0,162.34,162.24,41.20743769]
[1723158500605,40.17,162.38,162.24,41.20743769]
[1723158500813,20.0,162.37,162.27,15.4059]
[1723158501002,20.0,162.37,162.28,1.03670433]
[1723158501389,40.17,162.35,162.23,15.7073]
[1723158501589,1.54023677,162.36,162.16,15.5354]
[1723158501590,6.1648,162.21,162.16,15.5354]
[1723158501880,6.1645,162.22,162.16,15.5354]
[1723158502280,40.17,162.27,162.16,15.5354]
[1723158502484,6.1661,162.18,162.16,15.5354]
[1723158503096,6.1661,162.18,162.1,15.4221]
[1723158503097,6.1663,162.17,162.1,15.4221]
[1723158503392,6.1671,162.15,162.09,21.4418]
[1723158503792,40.17,162.18,162.09,21.4418]
[1723158504099,40.17,162.18,161.94,20.0]
[1723158504100,6.169,162.1,162.03,6.6663]
[1723158504296,40.17,162.15,162.02,31.6392]
[1723158504297,6.1698,162.08,162.02,31.6392]
[1723158504687,40.17,162.09,162.02,16.2094]
[1723158504904,40.17,162.12,162.03,6.1716]
[1723158505092,6.1691,162.1,162.03,6.1716]
[1723158505416,40.17,162.15,162.05,6.1709]
[1723158505591,65.0,162.14,162.02,16.2094]
[1723158505791,40.17,162.1,162.02,16.2094]
[1723158505995,6.1715,162.04,162.02,16.2094]
[1723158506598,55.593,162.1,162.0,0.3783213]
[1723158506599,6.1717,162.03,162.0,0.3783213]
[1723158506919,6.1712,162.05,162.0,0.3783213]
[1723158507219,6.1702,162.07,162.0,0.3783213]
[1723158507407,40.17,162.09,162.0,0.3783213]
[1723158507408,6.1705,162.06,162.0,0.3783213]
[1723158508023,6.1709,162.05,162.0,0.3783213]
[1723158508389,1.54297419,162.04,162.0,0.3783213]
[1723158508604,40.17,162.07,162.0,0.3783213]
[1723158508924,6.1717,162.03,162.0,0.3783213]
[1723158509110,6.1713,162.04,162.0,0.3783213]
[1723158509310,26.1707,162.06,162.0,0.3783213]
[1723158509706,40.17,162.09,162.0,6.5511213]
[1723158510217,20.0,162.08,162.01,7.2154387]
[1723158510528,40.17,162.11,162.02,6.172]
[1723158511022,40.17,162.13,162.03,1.04234731]
[1723158511201,6.1675,162.14,162.07,6.17]
[1723158511402,6.1675,162.14,162.06,1.04153348]
[1723158511600,6.1647,162.22,162.14,6.1674]
[1723158511800,6.1671,162.16,162.07,22.8811]
[1723158512017,40.17,162.18,162.07,38.3062]
[1723158512220,46.3359,162.18,162.07,39.34686815]
[1723158512419,40.17,162.21,162.1,21.5906]
[1723158512619,40.17,162.21,162.1,15.422]
[1723158512928,6.1675,162.14,162.07,22.8811]
[1723158513097,40.17,162.18,162.07,22.8811]
[1723158513296,40.17,162.15,162.07,22.8811]
[1723158513719,6.168,162.13,162.07,22.8811]
[1723158515226,40.17,162.15,162.07,16.285]
[1723158515436,40.17,162.12,162.02,6.3742]
[1723158515732,6.1705,162.06,162.02,6.3742]
[1723158515907,55.5909,162.12,162.02,6.3742]
[1723158516112,6.1701,162.07,162.02,6.3742]
[1723158516337,65.0,162.14,162.02,7.41686925]
[1723158516631,6.169,162.1,162.04,15.428]
[1723158516809,20.0,162.14,162.02,6.3742]
[1723158516810,40.17,162.11,162.02,6.3742]
[1723158517011,20.0,162.1,162.02,6.3742]
[1723158517202,6.1705,162.06,162.02,6.3742]
[1723158517407,20.0,162.1,162.02,6.3742]
[1723158517602,20.0,162.1,162.01,15.087]
[1723158517805,20.0,162.1,162.0,0.3783213]
[1723158517806,6.1724,162.01,162.0,0.3783213]
[1723158518202,40.17,162.05,162.0,0.3783213]
[1723158518509,6.1704,162.07,162.0,6.5511213]
[1723158518722,2.25390896,162.16,162.0,0.3783213]
[1723158519025,40.17,162.16,162.07,15.4252]
[1723158519222,6.1683,162.12,162.05,7.21215764]
[1723158519396,15.4142,162.19,162.05,41.21125764]
[1723158519397,40.17,162.19,162.05,41.21125764]
[1723158519598,40.17,162.22,162.09,15.4231]
[1723158519817,6.1667,162.17,162.09,21.5925]
[1723158520033,6.166,162.18,162.1,1.0406845]
[1723158520332,40.17,162.19,162.09,15.4231]
[1723158520501,46.3358,162.19,162.12,6.1682]
[1723158520919,40.17,162.19,162.09,16.46348788]
[1723158521125,6.168,162.13,162.05,15.4266]
[1723158521326,40.17,162.16,162.05,15.4266]
[1723158522135,6.1675,162.14,162.05,15.4266]
[1723158522339,40.17,162.16,162.06,1.04148871]
[1723158522632,40.17,162.16,162.09,6.1693]
[1723158522831,40.17,162.19,162.1,6.169]
[1723158523008,40.17,162.19,162.08,15.4242]
[1723158523221,40.17,162.16,162.04,22.0817]
[1723158523431,20.0,162.15,162.04,22.0817]
[1723158523745,32.93,162.12,162.04,22.0817]
[1723158524118,32.93,162.12,162.04,28.2526]
[1723158524119,39.0984,162.12,162.04,28.2526]
[1723158524320,6.1688,162.11,162.04,28.2526]
[1723158524921,6.1688,162.11,162.05,6.1709]
[1723158525143,39.0982,162.12,162.05,6.1709]
[1723158525340,6.1686,162.11,162.05,6.1709]
[1723158525647,39.0982,162.12,162.05,6.1709]
[1723158525828,20.0,162.15,162.1,6.1687]
[1723158526030,32.93,162.2,162.11,1.04078573]
[1723158526232,32.93,162.22,162.13,15.4194]
[1723158526852,32.93,162.22,162.17,1.0396954]
[1723158527149,6.1641,162.23,162.17,1.0396954]
[1723158527356,39.0937,162.24,162.17,7.2059954]
[1723158527649,32.93,162.26,162.17,1.0396954]
[1723158527949,32.93,162.33,162.24,6.1637]
[1723158528157,32.93,162.33,162.25,22.60786393]
[1723158528319,21.7939,162.39,162.22,39.0943]
[1723158528320,32.93,162.31,162.22,39.0943]
[1723158528525,32.93,162.31,162.22,6.1643]
[1723158528723,12.70562981,162.39,162.18,32.93]
[1723158528724,32.93,162.27,162.18,32.93]
[1723158528939,32.93,162.27,162.2,15.4125]
[1723158529153,32.93,162.29,162.23,6.164]
[1723158529370,32.93,162.29,162.2,48.3425]
[1723158529653,32.93,162.29,162.23,15.4098]
[1723158529654,39.0918,162.29,162.23,15.4098]
[1723158529820,6.1618,162.29,162.23,15.4098]
[1723158530020,40.16,162.28,162.16,27.8873]
[1723158530253,40.16,162.25,162.16,21.7206]
[1723158530436,6.1644,162.23,162.16,27.8873]
[1723158530646,21.54115161,162.27,162.16,27.8873]
[1723158530647,20.0,162.27,162.18,15.414]
[1723158530847,20.0,162.3,162.18,15.414]
[1723158531353,15.4052,162.29,162.16,21.7206]
[1723158531544,20.0,162.3,162.22,6.1644]
[1723158531764,20.0,162.3,162.2,15.4124]
[1723158531765,20.0,162.3,162.2,21.5772]
[1723158532071,6.162,162.29,162.21,6.1647]
[1723158532235,6.162,162.29,162.22,6.1643]
[1723158532437,6.1614,162.31,162.24,6.1636]
[1723158532639,40.16,162.34,162.25,6.1632]
[1723158532866,6.1612,162.31,162.24,6.1636]
[1723158533170,41.70050808,162.34,162.23,15.4099]
[1723158533333,40.16,162.31,162.19,15.4133]
[1723158533538,1.11906507,162.3,162.19,15.4133]
[1723158534039,1.54080579,162.3,162.19,15.4133]
[1723158534469,6.1625,162.27,162.2,6.1652]
[1723158534764,1.54080564,162.26,162.15,15.4172]
[1723158535143,40.16,162.25,162.11,40.16]
[1723158535458,40.16,162.22,162.16,15.3847]
[1723158535662,1.54155826,162.21,162.16,15.3847]
[1723158535864,40.16,162.24,162.14,15.4185]
[1723158536039,40.16,162.24,162.16,6.1666]
[1723158536240,46.3237,162.24,162.17,6.1663]
[1723158536661,46.3237,162.24,162.14,15.4185]
[1723158536662,1.54118296,162.23,162.12,6.1681]
[1723158536866,1.54118296,162.23,162.1,61.8241]
[1723158536867,40.16,162.21,162.1,6.2423]
[1723158537079,6.1675,162.14,162.07,6.1701]
[1723158537944,6.1701,162.07,162.02,16.0527]
[1723158538145,6.1697,162.08,162.02,31.4827]
[1723158538548,40.16,162.11,162.02,31.4827]
[1723158538851,40.16,162.15,162.05,15.4271]
[1723158539058,6.1672,162.15,162.08,15.4242]
[1723158539257,6.1672,162.15,162.09,6.1693]
[1723158539549,40.16,162.17,162.07,6.1698]
[1723158539863,6.1683,162.12,162.04,15.4275]
[1723158540053,35.4173,162.16,162.04,15.4275]
[1723158540248,6.1667,162.16,162.09,6.1694]
[1723158540450,40.16,162.17,162.1,15.4224]
[1723158540977,6.1661,162.18,162.12,6.1682]
[1723158541154,55.5698,162.24,162.14,15.4187]
[1723158541155,40.16,162.24,162.14,15.4187]
[1723158541353,40.16,162.24,162.15,15.2164]
[1723158541972,6.1667,162.17,162.11,6.0862]
[1723158542171,15.4113,162.22,162.11,6.0862]
[1723158542172,6.1668,162.16,162.11,6.0862]
[1723158542379,6.1663,162.17,162.11,6.0862]
[1723158542549,40.16,162.21,162.13,15.4194]
[1723158542860,40.16,162.24,162.13,16.4591295]
[1723158543061,40.16,162.24,162.13,15.4194]
[1723158543267,6.1655,162.2,162.13,15.4194]
[1723158543456,6.1648,162.21,162.13,15.4194]
[1723158543966,6.1648,162.21,162.11,6.0862]
[1723158543967,6.1667,162.16,162.11,6.0862]
[1723158544571,6.1663,162.17,162.11,6.0862]
[1723158545365,6.165,162.21,162.14,6.1673]
[1723158545580,6.165,162.21,162.12,15.4205]
[1723158545581,6.1644,162.22,162.16,6.1667]
[1723158545792,6.1652,162.2,162.12,15.4205]
[1723158546092,6.1648,162.21,162.12,15.4205]
[1723158546290,257.0,162.39,162.13,1.03927226]
[1723158546594,6.1664,162.17,162.11,27.6754]
[1723158546792,40.16,162.21,162.11,6.0862]
[1723158547162,6.1669,162.16,162.11,6.0862]
[1723158547871,6.1664,162.17,162.11,6.0862]
[1723158548070,6.166,162.18,162.11,12.2548]
[1723158548470,6.166,162.18,162.12,6.1682]
[1723158548788,1.54176194,162.17,162.11,6.0862]
[1723158548976,6.1678,162.14,162.08,15.2164]
[1723158549174,6.167,162.16,162.08,15.2164]
[1723158549416,6.1665,162.17,162.1,6.1689]
[1723158549563,40.16,162.19,162.09,15.4235]
[1723158549768,6.1679,162.13,162.08,15.2164]
[1723158550271,6.1675,162.14,162.08,15.2164]
[1723158550790,40.16,162.19,162.08,31.68137926]
[1723158550967,6.166,162.18,162.11,21.5901]
[1723158551283,6.1655,162.2,162.11,15.4215]
[1723158551590,6.1638,162.24,162.18,6.1659]
[1723158551791,45.0663,162.38,162.18,6.1659]
[1723158551792,22.009,162.33,162.2,15.4125]
[1723158551998,6.163,162.26,162.2,15.4125]
[1723158552485,32.88,162.27,162.2,15.4125]
[1723158552693,32.88,162.29,162.21,7.20287266]
[1723158552872,6.164,162.23,162.2,16.3056]
[1723158553060,32.88,162.24,162.2,16.3056]
[1723158553275,6.1648,162.21,162.14,55.3527]
[1723158553474,6.1648,162.21,162.15,6.167]
[1723158553676,39.0444,162.22,162.15,6.167]
[1723158554101,39.0444,162.22,162.14,49.1856]
[1723158554102,39.0444,162.22,162.14,55.3528]
[1723158554282,32.88,162.2,162.14,16.3056]
[1723158554872,6.1663,162.17,162.14,16.3056]
[1723158555201,6.1674,162.15,162.08,37.5365]
[1723158555406,32.88,162.16,162.09,6.1694]
[1723158555407,39.0467,162.16,162.09,6.1694]
[1723158555984,6.1673,162.15,162.08,37.5365]
[1723158556200,6.1673,162.15,162.09,6.1693]
[1723158556380,32.88,162.16,162.1,6.169]
[1723158556583,32.88,162.16,162.08,31.3668]
[1723158556778,32.88,162.16,162.09,6.1693]
[1723158557000,32.88,162.18,162.11,15.4213]
[1723158557299,32.88,162.24,162.11,15.4213]
[1723158557300,32.88,162.2,162.11,15.4213]
[1723158557504,32.88,162.22,162.14,15.4186]
[1723158557803,25.07563625,162.25,162.08,68.823]
[1723158557804,32.88,162.2,162.1,48.3017]
[1723158557992,32.88,162.18,162.1,15.4217]
[1723158558197,32.88,162.18,162.1,48.3017]
[1723158558413,6.1656,162.19,162.12,6.1681]
[1723158558576,32.88,162.2,162.1,48.3017]
[1723158558781,39.0452,162.2,162.11,1.03973162]
[1723158559078,32.88,162.16,162.08,15.943]
[1723158559298,32.88,162.14,162.08,15.943]
[1723158559500,6.1682,162.12,162.08,15.943]
[1723158559705,39.0478,162.14,162.08,15.943]
[1723158559899,6.1679,162.13,162.08,15.943]
[1723158560104,5.6679,162.13,162.08,15.943]
[1723158560306,32.88,162.14,162.08,15.943]
[1723158560493,32.88,162.14,162.08,16.98430388]
[1723158560717,6.1674,162.15,162.08,15.943]
[1723158560893,32.88,162.19,162.1,32.88]
[1723158561090,32.88,162.19,162.13,6.1676]
[1723158561312,32.88,162.19,162.08,15.943]
[1723158561313,32.88,162.17,162.08,48.823]
[1723158561515,32.88,162.17,162.08,64.2468]
[1723158561715,32.88,162.19,162.12,6.168]
[1723158561899,6.1655,162.2,162.12,6.168]
[1723158562498,32.88,162.21,162.14,15.4185]
[1723158562704,32.88,162.19,162.1,48.3017]
[1723158562923,6.1675,162.14,162.08,15.943]
[1723158563130,6.167,162.16,162.08,15.943]
[1723158563423,32.88,162.17,162.08,48.823]
[1723158563424,6.1673,162.15,162.08,48.823]
[1723158563634,32.88,162.15,162.08,15.943]
[1723158563810,6.1682,162.12,162.08,15.943]
[1723158564011,32.88,162.13,162.08,15.943]
[1723158564320,32.88,162.09,162.02,22.9038]
[1723158564524,32.88,162.06,162.02,16.6547]
[1723158565022,1.54276942,162.05,162.02,16.6547]
[1723158565212,1.54276942,162.05,162.0,0.3783213]
[1723158565213,32.88,162.04,162.0,0.3783213]
[1723158565528,6.1705,162.07,162.0,6.5511213]
[1723158565821,32.88,162.08,162.0,0.3783213]
[1723158566014,32.88,162.1,162.0,34.30112751]
[1723158566521,57.6262846,162.19,162.05,6.1708]
[1723158566522,39.0482,162.12,162.05,6.1708]
[1723158567901,32.88,162.14,162.08,6.1697]
[1723158568120,32.88,162.16,162.08,6.1697]
[1723158568324,32.88,162.18,162.09,6.4503]
[1723158568526,6.4485846,162.19,162.09,6.4503]
[1723158568527,39.0452,162.2,162.1,33.91993609]
[1723158568841,32.88,162.22,162.12,32.88]
[1723158569215,39.0445,162.22,162.15,15.4173]
[1723158569416,6.1667,162.17,162.09,12.6195]
[1723158569600,32.88,162.18,162.09,12.6195]
[1723158569799,6.1671,162.15,162.09,6.4503]
[1723158570119,39.046,162.18,162.11,6.1686]
[1723158570327,32.88,162.18,162.11,6.1686]
[1723158570707,1.54176648,162.17,162.1,21.5909]
[1723158570913,32.88,162.18,162.11,6.1685]
[1723158571242,32.88,162.2,162.13,15.4193]
[1723158571405,32.88,162.22,162.16,6.1666]
[1723158571607,32.88,162.22,162.17,1.03939682]
[1723158571908,32.88,162.22,162.09,6.4503]
[1723158571909,32.88,162.18,162.09,21.8733]
[1723158572214,6.1663,162.17,162.1,6.169]
[1723158572616,6.1673,162.15,162.09,21.8733]
[1723158573008,32.88,162.16,162.09,28.0426]
[1723158573428,32.88,162.16,162.1,6.1688]
[1723158573738,39.0469,162.16,162.09,28.0425]
[1723158573933,6.1671,162.15,162.09,21.8733]
[1723158574108,32.88,162.16,162.08,15.3292]
[1723158574109,32.88,162.12,162.08,15.3292]
[1723158575226,39.0483,162.12,162.08,15.3292]
[1723158575642,6.1656,162.19,162.11,6.1682]
[1723158575931,32.88,162.18,162.11,15.4213]
[1723158576134,39.0469,162.16,162.09,6.169]
[1723158576332,6.1671,162.15,162.08,21.4986]
[1723158576539,32.88,162.14,162.08,15.3292]
[1723158576747,6.168,162.13,162.08,15.3292]
[1723158576915,32.88,162.14,162.09,6.1693]
[1723158577309,32.88,162.12,162.08,15.3292]
[1723158577520,6.1691,162.1,162.08,15.3292]
[1723158577713,32.88,162.1,162.04,6.1253]
[1723158577920,32.88,162.08,162.02,16.6445]
[1723158578118,6.1705,162.07,162.02,16.6445]
[1723158578331,32.88,162.04,162.0,0.3783213]
[1723158578538,1.54310336,162.03,162.0,0.3783213]
[1723158578740,39.0516,162.04,162.0,0.3783213]
[1723158578912,32.88,162.06,162.0,0.3783213]
[1723158579234,39.0501,162.08,162.01,6.1724]
[1723158579469,39.0501,162.08,162.0,0.3783213]
[1723158579470,32.88,162.06,162.0,0.3783213]
[1723158579849,32.88,162.02,162.0,0.3783213]